fUSD/lending_fUSD_20240127
["ID","MTS","AMOUNT","RATE_DAILY","PERIOD"]
[312878128,1706393448629,-943.45,0.00049726,30]
[312878129,1706393448639,-402.65,0.00049726,30]
[312878130,1706393448648,-943.45,0.00049726,30]
[312878131,1706393448657,-402.65,0.00049726,30]
[312878132,1706393448666,-943.45,0.00049726,30]
[312878133,1706393448675,-402.65,0.00049726,30]
[312878134,1706393448685,-402.65,0.00049726,30]
[312878135,1706393448693,-943.45,0.00049726,30]
[312878136,1706393448703,-402.65,0.00049726,30]
[312878137,1706393448715,-943.45,0.00049726,30]
[312878138,1706393448724,-943.45,0.00049726,30]
[312878139,1706393448733,-2482.64849222,0.00049742,5]
[312878140,1706393448742,-157.0128,0.00049748,29]
[312878141,1706393448752,-4063.0,0.0004979,2]
[312878142,1706393448761,-3127.0,0.0004979,2]
[312878143,1706393448770,-1000.0,0.000498,120]
[312878144,1706393448779,-1120.36100255,0.000498,14]
[312878145,1706393448788,-2892.32145214,0.000498,26]
[312878146,1706393448798,-151.08297633,0.000498,14]
[312878147,1706393448807,-260.23308656,0.000498,67]
[312878148,1706393448816,-219.52335007,0.000498,2]
[312878149,1706393448826,-457.58376213,0.000498,2]
[312878150,1706393448835,-532.39441644,0.000498,2]
[312878151,1706393448844,-1503.2610083,0.00049866,2]
[312878152,1706393448854,-1611.98634,0.00049866,2]
[312878153,1706393448863,-1720.7116716,0.00049866,2]
[312878154,1706393448872,-1621.178102,0.00049866,2]
[312878155,1706393448881,-1734.6924833,0.00049866,2]
[312878156,1706393448890,-1848.2068646,0.00049866,2]
[312878157,1706393448898,-435.3927109,0.00049866,2]
[312878158,1706393448907,-465.8787718,0.00049866,2]
[312878159,1706393448916,-496.3648326,0.00049866,2]
[312878160,1706393448925,-190461.16368236,0.0004988,2]
[312878161,1706393448934,-689.0,0.0004989,2]
[312878162,1706393448943,-523.0,0.0004989,2]
[312878163,1706393448951,-2799.37346166,0.00049897,2]
[312878164,1706393448961,-15453.99683382,0.00049899,6]
[312878165,1706393448969,-316.33036581,0.00049899,90]
[312878166,1706393448978,-316.33036583,0.00049899,90]
[312878167,1706393448987,-150.0,0.00049899,9]
[312878168,1706393448996,-150.0,0.00049899,9]
[312878169,1706393449005,-150.0,0.00049899,9]
[312878170,1706393449014,-150.0,0.00049899,9]
[312878171,1706393449023,-150.0,0.00049899,9]
[312878172,1706393449032,-150.0,0.00049899,9]
[312878173,1706393449041,-150.0,0.00049899,9]
[312878174,1706393449050,-150.0,0.00049899,9]
[312878175,1706393449059,-150.0,0.00049899,9]
[312878176,1706393449069,-194.79012332,0.00049899,9]
[312878177,1706393449078,-150.0,0.00049899,9]
[312878178,1706393449088,-1207.45106629,0.000499,120]
[312878179,1706393449098,-1417677.52797831,0.000499,7]
[312878180,1706393449258,-4214.9,0.000499,7]
[312878181,1706393449519,-2004.64704821,0.000499,7]
[312878182,1706393449537,-1136.91960003,0.000499,7]
[312878183,1706393449638,-2359.23091868,0.000499,7]
[312878184,1706393449661,-437.55,0.00031764,2]
[312878185,1706393449671,-398117.05269985,0.000499,7]
[312878186,1706393449812,-589.3595969,0.00022999,2]
[312878187,1706393449821,-437.55,0.00034028,2]
[312878188,1706393449830,-437.55,0.00036292,2]
[312878189,1706393449840,-437.55,0.00038556,2]
[312878190,1706393449849,-437.55,0.0004082,2]
[312878191,1706393449858,-437.55,0.00043083,2]
[312878192,1706393449956,-437.55,0.00045347,2]
[312878193,1706393449966,-437.55,0.00047611,2]
[312878194,1706393449975,-437.55,0.00049875,2]
[312878195,1706393449985,-28850.32537385,0.000499,7]
[312878196,1706393450417,-171.98288,0.00031763,4]
[312878197,1706393450429,-247.26242367,0.00031763,4]
[312878198,1706393450438,-150.01,0.00034999,2]
[312878199,1706393450448,-3302.58843747,0.00034999,2]
[312878200,1706393450457,-1427.0,0.00042032,7]
[312878201,1706393450466,-206.25,0.0004969,10]
[312878202,1706393450476,-10609.70792255,0.000499,7]
[312878203,1706393450492,-7969.19936718,0.000499,7]
[312878204,1706393450503,-87864.5314004,0.000499,7]
[312878207,1706394447109,-155.03907271,0.00025,3]
[312878227,1706394631711,-394.96092729,0.00025,3]
[312878228,1706394631721,-106.65468691,0.00027,3]
[312878230,1706394631734,-285.8344283,0.00027,3]
[312878234,1706394631768,-207.51088479,0.00027,3]
[312878236,1706394631778,-650.0,0.00029,3]
[312878239,1706394631788,-155.0,0.00030999,2]
[312878241,1706394631797,-700.0,0.00031,3]
[312878242,1706394631807,-161.39211692,0.00031762,2]
[312878243,1706394631817,-220.82914292,0.00031763,4]
[312878244,1706394631827,-175.37378032,0.000324,2]
[312878245,1706394631836,-158.4,0.000325,2]
[312878246,1706394631846,-150.0,0.00032998,2]
[312878247,1706394631855,-2044.19,0.00032999,5]
[312878248,1706394631865,-1322.6,0.00032999,2]
[312878249,1706394631874,-330.28,0.00032999,2]
[312878250,1706394631884,-499.99,0.00032999,2]
[312878251,1706394631893,-24593.74,0.00032999,2]
[312878252,1706394631902,-750.0,0.00033,3]
[312878253,1706394631911,-269.96,0.000335,2]
[312878254,1706394631920,-269.96,0.000335,2]
[312878255,1706394631929,-269.96,0.000335,2]
[312878256,1706394631938,-137.34688375,0.000335,2]
[312878257,1706394631950,-132.61311625,0.000335,2]
[312878258,1706394631959,-239.42824598,0.000335,2]
[312878259,1706394631971,-30.53175402,0.000335,2]
[312878260,1706394631980,-269.96,0.000335,2]
[312878261,1706394631990,-269.96,0.000335,2]
[312878262,1706394631999,-269.96,0.000335,2]
[312878263,1706394632008,-269.96,0.000335,2]
[312878264,1706394632018,-269.96,0.000335,2]
[312878265,1706394632027,-269.96,0.000335,2]
[312878266,1706394632037,-269.96,0.000335,2]
[312878267,1706394632048,-269.96,0.000335,2]
[312878268,1706394632057,-269.96,0.000335,2]
[312878270,1706394632066,-196.95992861,0.000335,2]
[312878273,1706394632077,-73.00007139,0.000335,2]
[312878274,1706394632086,-269.96,0.000335,2]
[312878275,1706394632096,-269.96,0.000335,2]
[312878276,1706394632106,-269.96,0.000335,2]
[312878277,1706394632116,-269.96,0.000335,2]
[312878278,1706394632127,-269.96,0.000335,2]
[312878279,1706394632137,-800.0,0.00035,3]
[312878280,1706394632147,-250.0,0.00035982,111]
[312878281,1706394632156,-167.12,0.00036021,15]
[312878282,1706394632165,-250.0,0.00036042,2]
[312878283,1706394632174,-202.43,0.00036061,2]
[312878284,1706394632184,-270.65,0.00036198,2]
[312878285,1706394632193,-150.0,0.00036298,2]
[312878286,1706394632204,-175.37378028,0.00036725,2]
[312878287,1706394632214,-238.51195351,0.00037,14]
[312878288,1706394632224,-850.0,0.00037,3]
[312878289,1706394632233,-154.6,0.0003787,10]
[312878290,1706394632244,-158.4,0.00038,2]
[312878291,1706394632253,-158.4,0.00038,2]
[312878292,1706394632262,-13328.15,0.00038047,2]
[312878293,1706394632272,-250.0,0.00038246,2]
[312878294,1706394632282,-156.13,0.00038308,2]
[312878295,1706394632293,-150.0,0.00038351,2]
[312878296,1706394632302,-150.72,0.00038356,2]
[312878297,1706394632313,-174.5,0.00038391,2]
[312878298,1706394632323,-270.65,0.00038462,2]
[312878299,1706394632332,-2620.8068,0.00038743,2]
[312878300,1706394632342,-473.8529,0.00038743,2]
[312878301,1706394632353,-269.96,0.000388,3]
[312878302,1706394632362,-269.96,0.000388,3]
[312878303,1706394632372,-269.96,0.000388,3]
[312878304,1706394632382,-269.96,0.000388,3]
[312878305,1706394632393,-269.96,0.000388,3]
[312878306,1706394632403,-269.96,0.000388,3]
[312878307,1706394632412,-269.96,0.000388,3]
[312878308,1706394632422,-269.96,0.000388,3]
[312878309,1706394632432,-269.96,0.000388,3]
[312878310,1706394632442,-269.96,0.000388,3]
[312878311,1706394632453,-269.96,0.000388,3]
[312878312,1706394632463,-269.96,0.000388,3]
[312878313,1706394632472,-269.96,0.000388,3]
[312878314,1706394632481,-269.96,0.000388,3]
[312878315,1706394632491,-269.96,0.000388,3]
[312878316,1706394632500,-269.96,0.000388,3]
[312878317,1706394632510,-269.96,0.000388,3]
[312878318,1706394632521,-269.96,0.000388,3]
[312878319,1706394632532,-269.96,0.000388,3]
[312878320,1706394632543,-269.96,0.000388,3]
[312878321,1706394632553,-156.13,0.00038807,2]
[312878322,1706394632564,-1134.06992761,0.00038827,5]
[312878323,1706394632574,-260776.64963811,0.00038827,2]
[312878324,1706394632590,-240981.24676189,0.00038827,2]
[312878325,1706394632601,-251.5928,0.00038827,2]
[312878326,1706394632611,-715.1441,0.00038827,2]
[312878327,1706394632621,-155.03759764,0.00038841,4]
[312878328,1706394632631,-412.75724785,0.00038842,2]
[312878329,1706394632640,-22020.78791948,0.00038927,18]
[312878330,1706394632649,-1798.29,0.00038927,5]
[312878331,1706394632660,-1842.9,0.00038927,5]
[312878332,1706394632670,-17540.16388432,0.00038965,18]
[312878333,1706394632679,-282.4270994,0.0003898,2]
[312878334,1706394632688,-900.0,0.00039,3]
[312878335,1706394632698,-8160.90657346,0.00039003,20]
[312878336,1706394632707,-331.80378353,0.00039042,18]
[312878337,1706394632716,-156.13,0.00039306,2]
[312878338,1706394632726,-180.0,0.00039476,2]
[312878339,1706394632735,-153.91,0.00039623,2]
[312878340,1706394632745,-358.58,0.00039735,2]
[312878341,1706394632754,-1662.55,0.00039792,2]
[312878342,1706394632764,-156.13,0.00039805,2]
[312878343,1706394632773,-174.5,0.00040035,2]
[312878344,1706394632783,-161.41,0.00040259,2]
[312878345,1706394632792,-500.0,0.00040286,2]
[312878346,1706394632802,-156.13,0.00040304,2]
[312878347,1706394632811,-270.65,0.00040726,2]
[312878348,1706394632820,-150.72,0.00040753,2]
[312878349,1706394632830,-950.0,0.00041,3]
[312878350,1706394632839,-175.37378028,0.0004105,2]
[312878351,1706394632849,-174.5,0.00041678,2]
[312878352,1706394632858,-161.41,0.00041749,2]
[312878353,1706394632867,-167.12,0.00041892,15]
[312878354,1706394632877,-1000.0,0.00041894,2]
[312878355,1706394632886,-150.0,0.00041996,30]
[312878356,1706394632895,-500.0,0.00041996,6]
[312878357,1706394632904,-500.0,0.00041996,6]
[312878358,1706394632913,-500.0,0.00041996,6]
[312878359,1706394632922,-500.0,0.00041996,6]
[312878360,1706394632932,-500.0,0.00041996,6]
[312878361,1706394632941,-500.0,0.00041996,6]
[312878362,1706394632950,-500.0,0.00041996,6]
[312878363,1706394632959,-500.0,0.00041996,6]
[312878364,1706394632969,-500.0,0.00041996,6]
[312878365,1706394632978,-500.0,0.00041996,6]
[312878366,1706394632988,-500.0,0.00041996,6]
[312878367,1706394632998,-500.0,0.00041996,6]
[312878368,1706394633008,-500.0,0.00041996,6]
[312878369,1706394633018,-500.0,0.00041996,6]
[312878370,1706394633027,-500.0,0.00041996,6]
[312878371,1706394633037,-500.0,0.00041996,6]
[312878372,1706394633046,-500.0,0.00041996,6]
[312878373,1706394633055,-500.0,0.00041996,6]
[312878374,1706394633064,-500.0,0.00041996,6]
[312878375,1706394633073,-500.0,0.00041996,6]
[312878376,1706394633082,-500.0,0.00041996,6]
[312878377,1706394633091,-500.0,0.00041996,6]
[312878378,1706394633202,-500.0,0.00041996,6]
[312878379,1706394633213,-915.024323,0.00041996,6]
[312878380,1706394633222,-201.0477014,0.00042,2]
[312878381,1706394633231,-1813.85,0.00042032,5]
[312878382,1706394633240,-1839.15,0.00042032,5]
[312878383,1706394633249,-1799.93,0.00042032,5]
[312878384,1706394633258,-151.78248051,0.0004275,2]
[312878385,1706394633267,-270.65,0.0004299,2]
[312878386,1706394633276,-1000.0,0.00043,3]
[312878387,1706394633286,-151.0128,0.00043148,18]
[312878388,1706394633295,-150.72,0.00043151,2]
[312878389,1706394633304,-161.41,0.00043238,2]
[312878390,1706394633313,-174.5,0.00043322,2]
[312878391,1706394633322,-151.0128,0.00043448,18]
[312878392,1706394633331,-158.4,0.000435,2]
[312878393,1706394633340,-158.4,0.000435,2]
[312878394,1706394633349,-151.0128,0.00043748,18]
[312878395,1706394633359,-269.96,0.00044,4]
[312878396,1706394633369,-269.96,0.00044,4]
[312878397,1706394633378,-269.96,0.00044,4]
[312878398,1706394633387,-269.96,0.00044,4]
[312878399,1706394633396,-269.96,0.00044,4]
[312878400,1706394633405,-269.96,0.00044,4]
[312878401,1706394633415,-269.96,0.00044,4]
[312878402,1706394633424,-269.96,0.00044,4]
[312878403,1706394633433,-269.96,0.00044,4]
[312878404,1706394633442,-269.96,0.00044,4]
[312878405,1706394633451,-269.96,0.00044,4]
[312878406,1706394633460,-269.96,0.00044,4]
[312878407,1706394633470,-269.96,0.00044,4]
[312878408,1706394633481,-269.96,0.00044,4]
[312878409,1706394633494,-269.96,0.00044,4]
[312878410,1706394633504,-269.96,0.00044,4]
[312878411,1706394633513,-269.96,0.00044,4]
[312878412,1706394633523,-269.96,0.00044,4]
[312878413,1706394633532,-269.96,0.00044,4]
[312878414,1706394633542,-269.96,0.00044,4]
[312878415,1706394633551,-151.0128,0.00044148,20]
[312878416,1706394633560,-151.0128,0.00044448,20]
[312878417,1706394633569,-161.41,0.00044728,2]
[312878418,1706394633579,-151.0128,0.00044748,20]
[312878419,1706394633588,-2411.3271,0.000449,2]
[312878420,1706394633597,-174.5,0.00044966,2]
[312878421,1706394633607,-308.0,0.0004499,3]
[312878422,1706394633617,-1050.0,0.00045,3]
[312878423,1706394633628,-155.0,0.00045,2]
[312878424,1706394633638,-5000.01079526,0.00045,30]
[312878425,1706394633650,-155.0,0.00045,2]
[312878426,1706394633661,-884.0,0.00045,2]
[312878427,1706394633673,-151.0128,0.00045148,29]
[312878428,1706394633682,-270.65,0.00045254,2]
[312878429,1706394633692,-175.37378028,0.00045374,2]
[312878430,1706394633701,-151.0128,0.00045448,29]
[312878431,1706394633710,-150.72,0.00045548,2]
[312878432,1706394633719,-151.0128,0.00045748,29]
[312878433,1706394633728,-152.0,0.00045993,3]
[312878434,1706394633741,-151.0128,0.00046148,29]
[312878435,1706394633751,-161.41,0.00046217,2]
[312878436,1706394633761,-150.0,0.00046282,30]
[312878437,1706394633770,-151.0128,0.00046448,29]
[312878438,1706394633779,-174.5,0.0004661,2]
[312878439,1706394633788,-151.0128,0.00046748,29]
[312878440,1706394633798,-205.0,0.00046935,10]
[312878441,1706394633807,-316.0,0.0004699,3]
[312878442,1706394633817,-1100.0,0.00047,3]
[312878443,1706394633827,-1880.0,0.00047,2]
[312878444,1706394633836,-1000.0,0.00047131,2]
[312878445,1706394633846,-151.0128,0.00047148,29]
[312878446,1706394633856,-151.0128,0.00047448,29]
[312878447,1706394633865,-270.65,0.00047518,2]
[312878448,1706394633874,-151.0128,0.00047748,29]
[312878449,1706394633884,-167.12,0.00047763,15]
[312878450,1706394633894,-150.72,0.00047945,2]
[312878451,1706394633903,-151.0128,0.00048148,29]
[312878452,1706394633913,-151.0128,0.00048448,29]
[312878453,1706394633924,-152.0,0.00048575,4]
[312878454,1706394633934,-2342.42821909,0.00048747,5]
[312878455,1706394633943,-744.70968987,0.00048747,30]
[312878456,1706394633953,-151.0128,0.00048748,29]
[312878457,1706394633962,-1884.94,0.00048767,2]
[312878458,1706394633971,-405.13,0.00048767,2]
[312878459,1706394633980,-943.45,0.00048767,2]
[312878460,1706394633989,-402.65,0.00048767,2]
[312878461,1706394633999,-943.45,0.00048767,2]
[312878462,1706394634008,-402.65,0.00048767,2]
[312878463,1706394634017,-943.45,0.00048767,2]
[312878464,1706394634026,-402.65,0.00048767,2]
[312878465,1706394634035,-943.45,0.00048767,2]
[312878466,1706394634044,-943.45,0.00048767,2]
[312878467,1706394634054,-402.65,0.00048767,2]
[312878468,1706394634063,-402.65,0.00048767,2]
[312878469,1706394634072,-943.45,0.00048767,2]
[312878470,1706394634081,-13527.0628372,0.00048828,13]
[312878471,1706394634090,-1515.0,0.00048837,7]
[312878472,1706394634100,-1134.06992761,0.00048847,7]
[312878473,1706394634108,-60871.7827672,0.0004889,13]
[312878474,1706394634118,-8553.0,0.0004889,2]
[312878475,1706394634127,-282.0,0.0004889,2]
[312878476,1706394634136,-6957.3930297,0.000489,2]
[312878477,1706394634145,-6957.39302955,0.000489,2]
[312878478,1706394634154,-6957.39302955,0.000489,2]
[312878479,1706394634162,-6957.39302955,0.000489,2]
[312878480,1706394634171,-6957.39302955,0.000489,2]
[312878481,1706394634181,-6957.39302955,0.000489,2]
[312878482,1706394634190,-6957.39302955,0.000489,2]
[312878483,1706394634199,-6957.39302955,0.000489,2]
[312878484,1706394634208,-6957.39302955,0.000489,2]
[312878485,1706394634217,-6957.39302955,0.000489,2]
[312878486,1706394634226,-6957.39302955,0.000489,2]
[312878487,1706394634235,-6957.39302955,0.000489,2]
[312878488,1706394634246,-6957.39302955,0.000489,2]
[312878489,1706394634254,-6957.39302955,0.000489,2]
[312878490,1706394634263,-6957.39302955,0.000489,2]
[312878491,1706394634273,-6957.39302955,0.000489,2]
[312878492,1706394634282,-6957.39302955,0.000489,2]
[312878493,1706394634292,-6957.39302955,0.000489,2]
[312878494,1706394634301,-7043.27085421,0.00048901,4]
[312878495,1706394634310,-1042.58147094,0.00048902,5]
[312878496,1706394634320,-1075.91747744,0.00048902,5]
[312878497,1706394634330,-325.0,0.0004899,3]
[312878498,1706394634339,-1150.0,0.00049,3]
[312878499,1706394634348,-158.4,0.00049,2]
[312878500,1706394634357,-158.4,0.00049,2]
[312878501,1706394634366,-151.0128,0.00049148,29]
[312878502,1706394634375,-762.0,0.0004919,2]
[312878503,1706394634385,-40581.1885115,0.00049195,13]
[312878504,1706394634394,-6763.53141858,0.00049222,13]
[312878505,1706394634403,-6957.39302955,0.00049225,2]
[312878506,1706394634412,-5000.0,0.00049232,4]
[312878507,1706394634422,-623.0,0.00049291,30]
[312878508,1706394634431,-247.24074097,0.00049299,4]
[312878509,1706394634440,-250.0,0.000493,2]
[312878510,1706394634450,-500.0,0.000493,2]
[312878511,1706394634458,-500.0,0.000493,2]
[312878512,1706394634467,-500.0,0.000493,2]
[312878513,1706394634476,-500.0,0.000493,2]
[312878514,1706394634485,-500.0,0.000493,2]
[312878515,1706394634494,-500.0,0.000493,2]
[312878516,1706394634503,-1000.0,0.000493,2]
[312878517,1706394634512,-269.96,0.000493,6]
[312878518,1706394634521,-269.96,0.000493,6]
[312878519,1706394634530,-269.96,0.000493,6]
[312878520,1706394634539,-269.96,0.000493,6]
[312878521,1706394634548,-269.96,0.000493,6]
[312878522,1706394634557,-269.96,0.000493,6]
[312878523,1706394634566,-269.96,0.000493,6]
[312878524,1706394634575,-269.96,0.000493,6]
[312878525,1706394634584,-269.96,0.000493,6]
[312878526,1706394634593,-269.96,0.000493,6]
[312878527,1706394634602,-269.96,0.000493,6]
[312878528,1706394634611,-269.96,0.000493,6]
[312878529,1706394634620,-269.96,0.000493,6]
[312878530,1706394634629,-269.96,0.000493,6]
[312878531,1706394634638,-269.96,0.000493,6]
[312878532,1706394634647,-269.96,0.000493,6]
[312878533,1706394634656,-269.96,0.000493,6]
[312878534,1706394634669,-269.96,0.000493,6]
[312878535,1706394634678,-269.96,0.000493,6]
[312878536,1706394634687,-269.96,0.000493,6]
[312878537,1706394634696,-157.42729383,0.00049316,42]
[312878538,1706394634706,-151.0128,0.00049448,29]
[312878539,1706394634715,-202.01,0.00049589,30]
[312878540,1706394634724,-150.0,0.00049589,30]
[312878541,1706394634734,-150.0,0.00049589,30]
[312878542,1706394634745,-150.0,0.00049589,30]
[312878543,1706394634754,-150.0,0.00049589,30]
[312878544,1706394634763,-223.33,0.00049589,30]
[312878545,1706394634772,-152.47,0.00049589,30]
[312878546,1706394634781,-150.0,0.00049589,30]
[312878547,1706394634791,-150.0,0.00049589,30]
[312878548,1706394634800,-6763.53141858,0.00049669,13]
[312878549,1706394634809,-1000.0,0.00049689,120]
[312878550,1706394634818,-402.6672,0.00049689,120]
[312878551,1706394634827,-316.88,0.0004969,10]
[312878552,1706394634837,-264.07,0.0004969,10]
[312878553,1706394634846,-220.05,0.0004969,10]
[312878554,1706394634855,-21490.0,0.0004969,2]
[312878555,1706394634865,-772.0,0.0004969,2]
[312878556,1706394634874,-264.0283,0.00049699,2]
[312878557,1706394634883,-175.37378028,0.00049699,2]
[312878558,1706394634893,-306.3715424,0.00049699,2]
[312878559,1706394634902,-1401.81,0.000497,35]
[312878560,1706394634911,-402.65,0.00049726,30]
[312878561,1706394634921,-401.27,0.00049726,30]
[312878562,1706394634930,-943.45,0.00049726,30]
[312878563,1706394634939,-923.59,0.00049726,30]
[312878564,1706394634948,-151.0128,0.00049748,29]
[312878565,1706394634958,-20290.5942557,0.00049767,13]
[312878566,1706394634967,-84272.6857892,0.00049767,11]
[312878567,1706394634976,-40581.1885115,0.00049769,13]
[312878568,1706394634985,-31057.7131369,0.00049777,30]
[312878569,1706394634995,-60871.7827672,0.00049779,13]
[312878570,1706394635004,-84272.6857892,0.00049779,11]
[312878571,1706394635013,-84272.6857892,0.0004978,11]
[312878572,1706394635022,-270.65,0.00049782,2]
[312878573,1706394635031,-621.83787063,0.00049788,2]
[312878574,1706394635040,-168545.371578,0.00049789,11]
[312878575,1706394635050,-24012.0,0.0004979,2]
[312878576,1706394635059,-842.0,0.0004979,2]
[312878577,1706394635068,-100000.0,0.00049799,2]
[312878578,1706394635078,-1000.0,0.00049799,30]
[312878579,1706394635087,-245000.0,0.00049799,2]
[312878580,1706394635097,-3253.2972,0.00049799,2]
[312878581,1706394635196,-2000.0,0.000498,4]
[312878582,1706394635206,-6957.39302955,0.000498,2]
[312878583,1706394635215,-1954.9489599,0.00049866,2]
[312878584,1706394635224,-2080.0713486,0.00049866,2]
[312878585,1706394635233,-771.1039996,0.00049866,2]
[312878586,1706394635244,-820.4568862,0.00049866,2]
[312878587,1706394635252,-711.1817019,0.00049866,2]
[312878588,1706394635261,-756.6993881,0.00049866,2]
[312878589,1706394635270,-316.98352088,0.00049879,2]
[312878590,1706394635279,-195.38876634,0.00049879,2]
[312878591,1706394635288,-436517.10586394,0.00049888,31]
[312878592,1706394635297,-252818.057368,0.00049889,11]
[312878593,1706394635306,-12104.26976051,0.00049895,4]
[312878594,1706394635316,-150.01,0.00049896,2]
[312878595,1706394635325,-3302.58843747,0.00049896,2]
[312878596,1706394635334,-155.0,0.00049898,7]
[312878597,1706394635343,-1429.82219222,0.00049898,30]
[312878598,1706394635352,-150.0,0.00049898,9]
[312878599,1706394635362,-150.0,0.00049898,9]
[312878600,1706394635371,-26855.87675448,0.00049899,2]
[312878601,1706394635380,-1047.28946763,0.00049899,4]
[312878602,1706394635389,-371.3216074,0.00049899,90]
[312878603,1706394635398,-341.87198641,0.00049899,90]
[312878604,1706394635407,-395.54809981,0.00049899,2]
[312878605,1706394635416,-420795.55179416,0.00049899,2]
[312878606,1706394635425,-150.0,0.00049899,9]
[312878607,1706394635434,-150.0,0.00049899,9]
[312878608,1706394635444,-150.0,0.00049899,9]
[312878609,1706394635453,-150.0,0.00049899,9]
[312878610,1706394635462,-150.0,0.00049899,9]
[312878611,1706394635471,-150.0,0.00049899,9]
[312878612,1706394635480,-179088.30736923,0.000499,7]
[312878613,1706394635641,-225.0,0.00037186,2]
[312878614,1706394635650,-366.42977514,0.000499,7]
[312878615,1706394635663,-343.666,0.000499,7]
[312878616,1706394635675,-3888.23659935,0.000499,7]
[312878617,1706394635688,-1293.658,0.000499,7]
[312878618,1706394635704,-1016.372664,0.000499,7]
[312878619,1706394635720,-1060.15857639,0.000499,7]
[312878621,1706394637751,-542.20022849,0.0003888,2]
[312878622,1706394637761,-183.38,0.0004969,10]
[312878623,1706394637771,-4982.50221629,0.000499,7]
[312878624,1706394638072,-2916.39639337,0.000499,7]
[312878625,1706394638232,-63606.01253809,0.000499,7]
[312878899,1706394640849,-394.04226959,0.00040635,3]
[312878911,1706394640956,-148.15795886,0.00040635,3]
[312878913,1706394640965,-254.99004609,0.00048902,5]
[312879080,1706394642853,-406.26815017,0.00048902,5]
[312879092,1706394642950,-393.49248457,0.00048902,5]
[312879093,1706394642959,-914.87107164,0.0004989,2]
[312879094,1706394643006,-1611.20312233,0.0004989,2]
[312879095,1706394643015,-150.01,0.00049898,2]
[312879096,1706394643024,-985.56944817,0.00049898,2]
[312879097,1706394643036,-277.95641251,0.00049898,2]
[312879098,1706394643048,-2039.06257679,0.00049898,2]
[312879099,1706394643057,-1211.0,0.000499,7]
[312879100,1706394643066,-92359.46493649,0.000499,7]
[312879101,1706394643086,-150.0,0.00049589,30]
[312879102,1706394643095,-269916.7635948,0.000499,7]
[312879103,1706394643106,-5940.03383311,0.000499,7]
[312879118,1706394647541,-472.5176,0.000289,2]
[312879119,1706394647552,-499.77835147,0.00042542,2]
[312879120,1706394647566,-1348.58015327,0.00042542,2]
[312879121,1706394647596,-1605.98093766,0.00042542,2]
[312879122,1706395636123,-150.00584363,0.00024999,2]
[312879136,1706395831895,-4.99415637,0.00024999,2]
[312879137,1706395831904,-550.0,0.00025,3]
[312879139,1706395831914,-24.60329363,0.00025,2]
[312879144,1706395831951,-175.39670637,0.00025,2]
[312879146,1706395831960,-508.90507024,0.00025,2]
[312879147,1706395831969,-150.0044,0.000269,2]
[312879149,1706395831978,-600.0,0.00027,3]
[312879151,1706395831987,-151.85856629,0.000281,2]
[312879153,1706395831996,-261.41046666,0.00028198,2]
[312879155,1706395832005,-767.73599563,0.00028198,2]
[312879157,1706395832015,-150.0,0.00028199,2]
[312879159,1706395832024,-150.0,0.00028199,2]
[312879161,1706395832033,-1489.0,0.000282,2]
[312879163,1706395832042,-6002.0,0.000282,2]